Cogmind - Beta 13 @@@ ROGUE MODE // 2024.07.16 @ 18:47:53 Player: jagoly Result: Destroyed by G-47 Trooper with Particle Gun Performance ------------- Evolutions (3) 1500 Regions Visited (5) 1000 Robots Destroyed (240) 1200 Value Destroyed (7056) 7056 Prototype IDs (27) 540 Alien Tech Used (0) 0 Bonus (1387) 1387 TOTAL SCORE: 12683 Bonus ------- High Alert Combat Kills 1387 Cogmind --------- Core Integrity 0/700 Matter 107/300 Energy 65/100 System Corruption 28% Temperature Cool (9) Movement Walking (125) Location -7/Factory Parts ------- > --- POWER (1) -------- (None) > --- PROPULSION (3) --- Carbon-fiber Leg Improved Titanium Leg > --- UTILITY (7) ------ Large Storage Unit Tractor Beam > --- WEAPON (2) ------- Autogun > --- INVENTORY (15) --- Aluminum Leg Carbon-fiber Leg Improved Cooling System Improved Cooling System Machine Analyzer Improved Sensor Array Improved Signal Interpreter Transmission Jammer System Restoration Module System Restoration Module Scatter Rocket Array Heavy Flail Peak State ------------ > --- POWER ------------ Improved Deuterium Engine > --- PROPULSION ------- Medium Treads Enhanced Flexi-carbon Leg Enhanced Flexi-carbon Leg > --- UTILITY ---------- Large Storage Unit Advanced Targeting Computer Core Analyzer Improved Particle Charger Improved Medium Armor Plating System Shield System Restoration Module > --- WEAPON ----------- High-powered Field Laser Plasma Cannon > --- INVENTORY -------- Enhanced Nuclear Core Improved Cooling System Improved Cooling System Machine Analyzer Improved Sensor Array Improved Signal Interpreter Improved Particle Charger Kinecellerator Transmission Jammer System Restoration Module Improved Spread Laser Flak Gun Precision Assault Rifle Scatter Rocket Array Heavy Flail [Rating: 61] Favorites ----------- Power Heavy Ion Engine Engine Heavy Ion Engine Power Core Enhanced Nuclear Core Propulsion Light Treads Treads Light Treads Leg Aluminum Leg Flight Unit Flight Unit Utility Large Storage Unit Device Improved Shield Generator Storage Large Storage Unit Processor Advanced Targeting Computer Hackware System Shield Protection Improved Medium Armor Plating Weapon Improved Assault Rifle Energy Gun Advanced Beam Rifle Energy Cannon Advanced Beam Cannon Ballistic Gun Improved Assault Rifle Launcher Scatter Rocket Array Special Weapon Mining Laser Impact Weapon Heavy Hammer Build | -11 -10 -9 -9 -8 -7 ------- Run | Yrd Mat Mat Sto Mat Fac Slots Evolved 6 | . . 2 . 2 2 Power . | . . . . . . Propulsion 1 | . . 1 . . . Utility 5 | . . 1 . 2 2 Weapon . | . . . . . . Parts Attached 236 | 6 19 36 37 36 102 Power 25 | 1 4 7 3 2 8 Engine 21 | 1 4 7 3 2 4 Core 4 | . . . . . 4 Reactor . | . . . . . . Propulsion 70 | 2 7 16 12 9 24 Treads 54 | . 2 15 11 9 17 Leg 11 | 2 5 . . . 4 Wheel . | . . . . . . Hover . | . . . . . . Flight 5 | . . 1 1 . 3 Utility 68 | 1 4 5 5 10 43 Device 30 | . . . 1 4 25 Storage 4 | 1 2 . . 1 . Processor 13 | . 2 1 1 2 7 Hackware 3 | . . . 1 . 2 Protection 18 | . . 4 2 3 9 Artifact . | . . . . . . Weapon 73 | 2 4 8 17 15 27 Energy Gun 15 | . . 2 . 3 10 Energy Cannon 7 | . . . 1 4 2 Ballistic Gun 35 | 2 3 5 9 4 12 Ballistic Cannon . | . . . . . . Launcher 8 | . . . 1 4 3 Special Weapon 2 | . 1 1 . . . Impact Weapon 6 | . . . 6 . . Slashing Weapon . | . . . . . . Piercing Weapon . | . . . . . . Special Melee Weapon . | . . . . . . Unidentified Prototypes 17 | . . 3 2 3 9 Parts Lost 48 | . 1 3 3 16 25 Power 6 | . 1 . . 2 3 Propulsion 10 | . . 1 2 4 3 Utility 21 | . . 1 1 6 13 Weapon 11 | . . 1 . 4 6 Highest Loss Streak 14 | . 1 2 2 11 14 To Critical Strikes 2 | . . . . . 2 Average Slot Usage (%) 97 | . 97 98 99 93 96 Engine 8 | . 13 10 10 8 5 Treads 24 | . 8 32 32 26 21 Leg 3 | . 19 . . . 1 Device 8 | . . . . 8 19 Storage 9 | . 14 11 11 9 7 Processor 11 | . 11 11 10 11 10 Hackware 4 | . . . 8 5 6 Protection 4 | . . 9 1 6 5 Energy Gun 3 | . . 3 . 1 6 Energy Cannon 1 | . . . 1 4 1 Ballistic Gun 14 | . 27 18 19 11 6 Naked Turns . | . . . . . . Heaviest Build 54 | 11 29 38 40 42 54 Greatest Support 84 | 20 40 60 60 69 84 Greatest Overweight (x) 1 | . . 1 . 1 1 Average Overweight (x) . | . . . . . . Largest Inventory Capacity 15 | 8 15 15 15 15 15 Average Capacity 14 | 6 9 15 15 15 15 Most Carried 15 | 3 11 15 15 15 15 Average Carried 13 | 2 7 13 14 13 14 Final Capacity 15 | 8 15 15 15 15 15 Final Carried 15 | 3 11 15 15 15 12 Class Distribution -------------------- 84% | Mutant 15% | Scavenger-Mutant Dominant Class ---------------- Mutant | -10/Materials Mutant | -9/Materials Mutant | -9/Storage Mutant | -8/Materials Mutant | -7/Factory Resources | -11 -10 -9 -9 -8 -7 ----------- Run | Yrd Mat Mat Sto Mat Fac Matter Collected 5152 | 193 606 894 994 739 1726 Remotely 64 | . . . . . 64 Salvage Created 8777 | . 784 1511 1845 1514 3123 Parts 510 | . 43 98 108 85 176 Haulers Intercepted 18 | . 1 6 6 2 3 Recyclers Shooed 7 | . . 2 . 1 4 Parts Field Recycled . | . . . . . . Retrieved Matter . | . . . . . . Parts Self-Destructed . | . . . . . . Prevented . | . . . . . . Kills | -11 -10 -9 -9 -8 -7 ------- Run | Yrd Mat Mat Sto Mat Fac Combat Hostiles Destroyed 162 | . 15 27 33 33 54 Guns 121 | . 15 27 27 16 36 Cannons 13 | . . . 6 5 2 AOE 25 | . . . . 12 13 Classes Destroyed 16 | . 7 2 2 3 2 Worker 24 | . 4 2 . 2 16 Builder 6 | . . . . 4 2 Hauler 18 | . 1 6 6 2 3 Recycler 10 | . 2 2 . 1 5 Mechanic 1 | . . . . . 1 Operator 8 | . 1 2 2 1 2 Watcher 11 | . 2 3 2 1 3 Swarmer 28 | . 6 12 . 6 4 Grunt 69 | . 9 5 21 17 17 Brawler 6 | . . . 1 . 5 Duelist 5 | . . 1 . 1 3 Protector 4 | . . . 1 . 3 Sentry 36 | . . 9 10 7 10 Hunter 5 | . . . . 1 4 Programmer 7 | . . . . . 7 Heavy 2 | . . . . 1 1 Best Kill Streak 17 | . 4 8 5 14 17 Combat Bots Only 10 | . 4 5 4 10 10 Max Kills in Single Turn 11 | . 1 2 1 11 5 Gunslinging 1 | . . 1 . . . Exploded 7 | . . . . 7 4 Melee . | . . . . . . Uniques/NPCs Destroyed . | . . . . . . Combat | -11 -10 -9 -9 -8 -7 -------- Run | Yrd Mat Mat Sto Mat Fac Hostile Shots Fired 1154 | . 81 136 146 171 620 Missed 337 | . 23 26 38 37 213 Damage Taken 11154 | . 656 1426 1497 2502 5073 Core 1690 | . 145 166 122 546 711 Absorbed by Shields 759 | . . . . . 759 Regen/Repaired (Parts) 82 | . . . . . 82 Core Remaining (%) 42 | 100 42 . 28 . . Volleys Fired 630 | . 78 114 128 96 214 Largest 2 | . 2 2 2 2 2 Hottest 150 | . 100 100 91 143 150 Shots Fired 1176 | . 154 208 244 183 387 Gun 1044 | . 153 203 213 127 348 Cannon 117 | . . . 31 51 35 Launcher 9 | . . . . 5 4 Special 6 | . 1 5 . . . Kinetic 815 | . 153 165 213 112 172 Thermal 352 | . 1 43 31 66 211 Explosive 9 | . . . . 5 4 Electromagnetic . | . . . . . . Robot Hit Streak 27 | . 8 14 20 21 27 Robot Miss Streak 8 | . 5 3 3 2 8 Penetration Max 1 | . . . . . 1 Secondary Targets 8 | . . 3 2 2 1 Max Gunslinging Chain 1 | . . 1 1 1 1 Shots Hit Robots 865 | . 90 146 188 142 299 Core Hits 564 | . 43 59 68 100 294 Critical Kills 1 | . . . . . 1 Critical Parts Destroyed 5 | . 1 2 . 1 1 Critical Strikes 20 | . 1 7 . 3 9 Burn 14 | . . 5 . 2 7 Destroy 6 | . 1 2 . 1 2 Melee Attacks 31 | . . . 31 . . Impact 31 | . . . 31 . . Slashing . | . . . . . . Piercing . | . . . . . . Sneak Attacks . | . . . . . . Combat Hostiles . | . . . . . . Follow-up Attacks . | . . . . . . Damage Inflicted 18784 | . 1167 2106 2957 3925 8629 Guns 13264 | . 1167 2106 2486 1569 5936 Cannons 1960 | . . . 471 867 622 Explosions 3537 | . . . . 1489 2048 Melee . | . . . . . . Ramming 23 | . . . . . 23 Kinetic 9525 | . 1167 1728 2486 1285 2859 Thermal 5699 | . . 378 471 1151 3699 Explosive 3471 | . . . . 1489 1982 Electromagnetic 66 | . . . . . 66 Impact . | . . . . . . Slashing . | . . . . . . Piercing . | . . . . . . Highest Corruption 28 | . 2 . . 8 28 Average Corruption 3 | . 1 . . 5 3 Corruption Purged 5 | . . . . . 5 Corruption Blocked . | . . . . . . Effects 48 | . 5 . . 22 21 Message Errors 8 | . . . . 5 3 Matter Fused 12 | . 1 . . 5 6 Heat Flow Errors 3 | . 1 . . 2 . Energy Discharges 4 | . 1 . . 1 2 Parts Rejected 2 | . . . . . 2 Parts Fused 3 | . . . . 1 2 Data Loss (minor) 4 | . 1 . . 1 2 Data Loss (major) 4 | . . . . 3 1 Misfires 3 | . . . . . 3 Alerts 1 | . . . . 1 . Weapon Failures 4 | . 1 . . 3 . Overload Shots . | . . . . . . Overflow Damage 135 | . . . 14 30 91 Projectiles 44 | . . . 14 30 . Explosions 91 | . . . . . 91 Melee . | . . . . . . Knockbacks . | . . . . . . Impact . | . . . . . . Kinetic . | . . . . . . Secondary . | . . . . . . Self-Inflicted Damage 317 | . . . . 23 294 Shots 15 | . . . . 1 14 Rammed 1 | . . . . . 1 Targets Rammed 9 | . . . . . 9 Kicked 8 | . . . . . 8 Crushed . | . . . . . . Highest Temperature 263 | . 193 231 241 263 249 Average Temperature 67 | . 38 78 75 40 66 Received Heat Transfer 3141 | . 315 381 753 621 1071 Siege Activations . | . . . . . . Robots Corrupted . | . . . . . . Combat Hostiles . | . . . . . . Parts Fried 1 | . . . . . 1 Impact Corruptions . | . . . . . . Robots Melted 3 | . . . . . 3 Combat Hostiles 3 | . . . . . 3 Parts Melted 43 | . . 5 4 9 25 Heat Transferred 10332 | . . 1332 851 2183 5966 Parts Sabotaged . | . . . . . . Parts Stolen . | . . . . . . Parts Stripped . | . . . . . . Power Chain Reactions . | . . . . . . Alert | -11 -10 -9 -9 -8 -7 ------- Run | Yrd Mat Mat Sto Mat Fac Peak Influence 1137 | . 198 619 798 890 1137 Initial 382 | . . . 261 336 382 Average 397 | . 93 209 504 621 452 Maximum Alert Level 4 | . . 2 3 3 4 Low Security (%) 24 | 100 100 62 . . 2 Level 1 31 | . . 13 29 21 52 Level 2 29 | . . 23 55 26 30 Level 3 13 | . . . 14 52 12 Level 4 . | . . . . . 1 Level 5 . | . . . . . . High Security . | . . . . . . Max Security . | . . . . . . Squads Dispatched 41 | . 3 4 4 8 22 Investigation 8 | . 2 1 1 1 3 Extermination 6 | . . . . . 6 Reinforcement 16 | . 1 3 2 4 6 Assault 5 | . . . 1 . 4 Garrison 6 | . . . . 3 3 Intercept . | . . . . . . Searches Triggered . | . . . . . . Construction Impeded 2 | . . . . 1 1 Haulers Reinforced 1 | . . . . . 1 Active Scanning Responses . | . . . . . . Cargo Convoy Interrupts 1 | . . . . . 1 Stealth | -11 -10 -9 -9 -8 -7 --------- Run | Yrd Mat Mat Sto Mat Fac Distress Signals 14 | . 1 2 3 4 4 Communications Jammed . | . . . . . . Distress Signals . | . . . . . . Times Spotted 242 | . 28 41 48 44 81 Peak Tracking Total 11 | . 4 6 5 11 9 Tactical Retreats 5 | . 1 . 3 . 1 Traps | -11 -10 -9 -9 -8 -7 ------- Run | Yrd Mat Mat Sto Mat Fac Traps Triggered 13 | . 4 1 . 3 5 Indirectly . | . . . . . . Trap Hack Attempts . | . . . . . . Triggered . | . . . . . . Disarmed . | . . . . . . Reprogrammed . | . . . . . . Reused . | . . . . . . Traps Extracted . | . . . . . . Installed . | . . . . . . Triggered 1 | . . . . . 1 Machines | -11 -10 -9 -9 -8 -7 ---------- Run | Yrd Mat Mat Sto Mat Fac Machines Disabled 13 | . . 1 4 . 8 Max in Single Turn 4 | . . 1 1 . 4 Garrison Access 3 | . . . 1 1 1 Machines Repaired . | . . . . . . Machines Dismantled . | . . . . . . Machines Sabotaged . | . . . . . . Overloaded Fab Kills . | . . . . . . Hacking | -11 -10 -9 -9 -8 -7 --------- Run | Yrd Mat Mat Sto Mat Fac Machines Accessed 58 | . 9 5 14 6 24 Terminals 41 | . 7 4 12 3 15 Fabricators 3 | . . . . . 3 Repair Stations 2 | . . . . . 2 Recycling Units 9 | . 2 1 1 2 3 Scanalyzers 1 | . . . . . 1 Garrison Access 2 | . . . 1 1 . Total Hacks 171 | . 25 19 32 16 79 Successful 69 | . 7 7 11 9 35 Failed 102 | . 18 12 21 7 44 Catastrophic 22 | . 5 2 1 3 11 Database Lockouts . | . . . . . . Manual 50 | . 10 11 4 5 20 Terminals 123 | . 21 15 30 11 46 Fabricators 5 | . . . . . 5 Repair Stations 6 | . . . . . 6 Recycling Units 19 | . 4 4 1 4 6 Scanalyzers 16 | . . . . . 16 Garrison Access 2 | . . . 1 1 . Terminal Hacks 35 | . 5 5 9 5 11 Part Schematic 2 | . . . . . 2 Robot Analysis 1 | . . . 1 . . Prototype ID Bank 5 | . 1 1 . . 3 Open Door 5 | . . . 5 . . Branch Access Points 3 | . . 1 . 1 1 Emergency Access Points 2 | . . . 1 1 . Terminal Index 5 | . 1 1 1 1 1 Unreport Threat 4 | . 2 . . . 2 Locate Traps 2 | . . 1 . . 1 Hauler Manifests 2 | . . . 1 1 . Registered Components 4 | . 1 1 . 1 1 Fabricator Hacks 3 | . . . . . 3 Network Status 1 | . . . . . 1 Load Schematic 1 | . . . . . 1 Build 1 | . . . . . 1 Repair Station Hacks 4 | . . . . . 4 Scan Component 2 | . . . . . 2 Repair 2 | . . . . . 2 Recycling Unit Hacks 9 | . 1 2 1 2 3 Retrieve Components 9 | . 1 2 1 2 3 Scanalyzer 13 | . . . . . 13 Insert Component 6 | . . . . . 6 Analyze 7 | . . . . . 7 Garrison Access Hacks 2 | . . . 1 1 . Seal Access 2 | . . . 1 1 . Unauthorized Hacks 3 | . 1 . . 1 1 Terminals 2 | . 1 . . 1 . Operators 2 | . 1 . . 1 . Fabricators . | . . . . . . Repair Stations 1 | . . . . . 1 Mechanics 1 | . . . . . 1 Recycling Units . | . . . . . . Scanalyzers . | . . . . . . Garrison Access . | . . . . . . Data Cores Recovered . | . . . . . . Used . | . . . . . . Hacking Detections 44 | . 9 5 8 3 19 Full Trace Events 6 | . 1 . 2 . 3 Feedback Events . | . . . . . . Feedback Blocked . | . . . . . . Robot Schematics Acquired . | . . . . . . Robots Built . | . . . . . . Authchips . | . . . . . . Time . | . . . . . . Total Robot Build Rating . | . . . . . . Part Schematics Acquired 7 | . . . . . 7 Parts Built 2 | . . . . . 2 Authchips . | . . . . . . Time 95 | . . . . . 95 Total Part Build Rating 10 | . . . . . 10 Parts Repaired 2 | . . . . . 2 Time 108 | . . . . . 108 Parts Recycled . | . . . . . . Recycled Matter . | . . . . . . Retrieved Matter . | . . . . . . Retrieved Components 74 | . 10 19 1 19 25 Parts Scanalyzed 5 | . . . . . 5 Part Schematics Acquired 5 | . . . . . 5 Parts Damaged 1 | . . . . . 1 Bothacking | -11 -10 -9 -9 -8 -7 ------------ Run | Yrd Mat Mat Sto Mat Fac Used RIF Installer . | . . . . . . Robots Hacked . | . . . . . . Non-combat . | . . . . . . Combat . | . . . . . . Robot Hacks Applied . | . . . . . . Relay Couplers Released 3 | . . . . . 3 Machine Destruction 3 | . . . . . 3 Fabnet Peak Effective % . | . . . . . . Robots Rewired . | . . . . . . Allies Hacked . | . . . . . . Hacks Repelled . | . . . . . . Allies | -11 -10 -9 -9 -8 -7 -------- Run | Yrd Mat Mat Sto Mat Fac Total Allies . | . . . . . . Largest Group . | . . . . . . Highest-Rated Group . | . . . . . . Highest-Rated Ally . | . . . . . . Total Orders 14 | . . . 14 . . EXPLORE 14 | . . . 14 . . Ally Attacks . | . . . . . . Total Damage . | . . . . . . Kills . | . . . . . . Allies Corrupted . | . . . . . . Allies Melted . | . . . . . . Intel | -11 -10 -9 -9 -8 -7 ------- Run | Yrd Mat Mat Sto Mat Fac Robot Analysis Total 1 | . . . 1 . . Derelict Logs Recovered . | . . . . . . Drone Launches 14 | . . . 14 . . Drone Recoveries 2 | . . . 2 . . Exploration | -11 -10 -9 -9 -8 -7 ------------- Run | Yrd Mat Mat Sto Mat Fac Turns Passed 9634 | 61 1248 1437 1963 1115 3810 Spaces Moved 4439 | 48 708 583 814 475 1811 Core 11 | 11 . . . . . Treads 3807 | . 209 583 814 475 1726 Legs 621 | 37 499 . . . 85 Wheels . | . . . . . . Hover . | . . . . . . Flight . | . . . . . . Fastest Speed 50 | 50 120 160 160 152 120 Average Speed 154 | 103 131 162 160 159 157 Slowest Speed 240 | 120 160 240 160 240 240 Overloaded Moves . | . . . . . . Propulsion Burnouts . | . . . . . . Robots Hopped . | . . . . . . Cave-ins Triggered . | . . . . . . Exploration Rate (%) 57 | 3 98 51 94 48 53 Regions Visited 5 Branch Regions 1 Pre-discovered Areas . | . . . . . . Known Exits Taken 1 | . . 1 . . . Unknown Exits Taken 4 | 1 1 . 1 1 . Scrap Searched . | . . . . . . Spaces Dug 9 | . 1 5 3 . . Terrain Destroyed 162 | . 1 5 3 51 102 Melee 3 | . . . 3 . . Projectile 9 | . 1 5 . . 3 AOE 150 | . . . . 51 99 Terrain Rammed . | . . . . . . Walls Destroyed . | . . . . . . Machines Disabled . | . . . . . . Actions | -11 -10 -9 -9 -8 -7 --------- Run | Yrd Mat Mat Sto Mat Fac Total 5986 | 56 874 863 1180 641 2372 Wait 391 | . 42 80 128 7 134 Move 4434 | 47 707 582 813 474 1811 Hop . | . . . . . . Pick Up 95 | 3 14 15 11 13 39 Fast Attach 79 | 6 5 9 8 11 40 Attach 54 | . 2 8 5 17 22 Detach 27 | . 1 7 2 5 12 Swap 103 | . 12 19 24 8 40 Drop 127 | . 13 29 24 10 51 Fire 630 | . 78 114 128 96 214 Melee 31 | . . . 31 . . Ram . | . . . . . . Kick 8 | . . . . . 8 Crush 1 | . . . . . 1 Escape Stasis . | . . . . . . Rewire . | . . . . . . Trap . | . . . . . . Miscellaneous 6 | . . . 6 . . Route ------- -11/Scrapyard -10/Materials (discovered 4 exits: *Mat x3 / [*Min]) -9/Materials (discovered 5 exits: *Mat / *Min x2 / *Sto x2) -9/Storage -8/Materials -7/Factory (discovered 5 exits: [*Fac x3] / Low x2) History --------- Turn | Location | Event 4 | -11/Scrapyard | Discovered new exit (range 15) 62 | -11/Scrapyard | Entered Materials 273 | -10/Materials | Discovered new exit (range 8) 311 | -10/Materials | Build established: Mutant 424 | -10/Materials | Discovered new exit (range 10) 798 | -10/Materials | Discovered new exit (range 11) 988 | -10/Materials | Core integrity fell below 50% 1067 | -10/Materials | Discovered new exit (range 10) 1310 | -10/Materials | Entered another Materials area 1310 | -9/Materials | Evolved 2 slots: Propulsion x1, Utility x1 1351 | -9/Materials | Identified exit to Mines 1351 | -9/Materials | Identified exit to Storage 1872 | -9/Materials | Discovered new exit (range 4) 2387 | -9/Materials | Build established: Scavenger-Mutant 2747 | -9/Materials | Entered Storage 2851 | -9/Storage | Build established: Mutant 3051 | -9/Storage | Core integrity fell below 50% 3110 | -9/Storage | Lost 3 allies 4080 | -9/Storage | Found Prototype Launcher 4080 | -9/Storage | Identified Scatter Rocket Array 4094 | -9/Storage | Discovered new exit (range 6) 4347 | -9/Storage | First assault squad dispatched 4710 | -9/Storage | Entered Materials 4710 | -8/Materials | Evolved 2 slots: Utility x2 4881 | -8/Materials | Build established: Scavenger-Mutant 5198 | -8/Materials | Garrison activated, responded to threat 5203 | -8/Materials | Core integrity fell below 50% 5265 | -8/Materials | Lost 11 parts (1p4n4u2w) 5271 | -8/Materials | Destroyed 10 combat bots 5405 | -8/Materials | Core integrity fell below 20% 5575 | -8/Materials | Build established: Mutant 5658 | -8/Materials | Discovered new exit (range 15) 5825 | -8/Materials | Entered Factory 5825 | -7/Factory | Evolved 2 slots: Utility x2 6004 | -7/Factory | Discovered new exit (range 15) 6348 | -7/Factory | Identified exit to Lower Caves 6527 | -7/Factory | Repaired Particle Charger? 6861 | -7/Factory | Discovered new exit (range 15) 7061 | -7/Factory | Garrison activated, responded to threat 7174 | -7/Factory | Fabricated Imp. Particle Charger (x2) 7493 | -7/Factory | Cargo convoy interrupted 7528 | -7/Factory | Repaired Enh. Nuclear Core? 8122 | -7/Factory | Discovered new exit (range 15) 9025 | -7/Factory | First assault squad dispatched 9179 | -7/Factory | Destroyed 10 combat bots 9402 | -7/Factory | Core integrity fell below 50% 9435 | -7/Factory | Core integrity fell below 20% 9470 | -7/Factory | Lost 14 parts (1p2n7u4w) 9519 | -7/Factory | Destroyed 9 combat bots 9559 | -7/Factory | System corruption reached 10% 9623 | -7/Factory | Lost 7 parts (1p1n4u1w) 9635 | -7/Factory | Destroyed by G-47 Trooper with Particle Gun Last Messages --------------- 09601_ K-01 Serf collects debris. 09602_ Acquired Autogun. 09604_ K-01 Serf collects debris. 09605_ Acquired Tractor Beam. 09606_ Acquired 64 matter. 09607_ K-01 Serf collects debris. 09608_ K-01 Serf cleans the Construction Platform. 09612_ K-01 Serf collects debris. 09613_ System corrupted: Energy discharge (-24). 09614_ Connecting with Terminal... 09614_ ALERT: Suspicious activity at Terminal F006. Dispatching Investigation squad. 09615_ Slug penetrates G-47 Trooper. 09616_ K-01 Serf collects debris. 09624_ M-28 Smith repairs G-47 Trooper. 09624_ U-05 Engineer lays Concrete. 09628_ K-01 Serf cleans the Construction Platform. 09629_ U-05 Engineer lays Concrete. 09630_ System corrupted: Gauss Rifle rejected. 09630_ U-05 Engineer lays Concrete. Map ----- +----------------------------------------------------+ | ?????????????????# #?????# ## | | ?????????????????# ####### ## | | ?????????????????# """"""" + + ! | | ?????????????????# """"""" ####### ## ! | | ?????????????????# """"""" #?????# ## | | ?????????????????# """"""" #?????### #### | | ?????????????????# #???????# #??# | | ?????????????????# """"""" #???????# #??# | | ?????????????????# """"""" #???????# #??# | | ?????????????????? """"""" #???????# #??# | | ?????????????????# """"""" #?????### ########## | | ?????????????????# #?????# | | ?????????????###########+######?????# | | ?????????????# #???????# "" | | ?????????????# #???????# """ "T | | ?????????????# #???????# """ | | ?????????????# #???????# """ | | ?????????????# #???????# | | ?????????????# ##########???????# """ """ | | ?????????????# #????????????????# """ """ | | ?????????????# #????????????????# """ """ | | ?????????????+ ##############???# | | ?????????????# #[ ! ! #???# """ """ | | ??????######## # ##### """ """ | | ??????# # # """" + """ """ | | ??????# # # """"@ ! g #???# | | ??????# # """" !gm#???? ??" """ | | ??????# # # """" #?????? ??" """ | | ????# # + """" #????????????? """ | | ????# #k""""[ #??????????????? | | ???# # """" "" #???????????????"" | | ??# # u T" #???????????????"" | | ^?# # *! # "" #????????????????" | | #####+# !%=# #???????????????? | | ! # ############????????????????? | | # #???????????????????????????? | | # #????????#######????????????? | | ! # #???????? ?????????????! | | """" ! ##??????? ?????????????? | | """" ##########??????? ??????????????? | | ?? """" # %* #??????? #???????????????? | | ?? """" # ! !""" ######## #???????????????? | | ???"""" / "" # #???????????????? | | ???"""" # """ +% #???????????????? | | ? #* "" # """ #???????????????? | | # "" # "" #???????????????? | | ######## # #???????????????? | | ???????# # == #???????????????? | | ????????# ## #???????????????? | | ?????????########### #???????????????? | +----------------------------------------------------+ Best States ------------- Heat Dissipation 62 Energy Generation 17 Energy Capacity 300 Matter Stores 300 Matter Capacity 300 Sight Range 16 Robot Scan Range 15 Terrain Scan Density 10 Armor Coverage 450 Weapon Cycling 15 Evasion (%) 55 Targeting Accuracy 14 Core Analysis 9 Recoil Reduction 3 Particle Charging 20 Kinecelleration 30 Offensive Hacking 10 Defensive Hacking 10 Item Schematics ----------------- Imp. Particle Charger | -7/Factory | Hacked Adv. Signal Interpreter | -7/Factory | Hacked Prc. Assault Rifle | -7/Factory | Scanalyzed Scatter Rocket Array | -7/Factory | Scanalyzed Enh. Nuclear Core | -7/Factory | Scanalyzed Machine Analyzer | -7/Factory | Scanalyzed Med. Treads | -7/Factory | Scanalyzed Robot Schematics ------------------ None Fabricated ------------ Imp. Particle Charger | x2 | -7/Factory Alien Tech Used ----------------- None Achievements -------------- None Challenges ------------ None Game ------ Seed DirtyTrackerChainsword Manual? 0 Play Time 02:54:08 Cumulative 104.6 hours Start 2024.07.15 @ 15:59:56 End 2024.07.16 @ 18:47:53 Sessions 5 Manual Loads 0 Difficulty Rogue Special Mode None Game No. 31 Rogue 31 Adventurer 0 Explorer 0 Win Type - Total 1 Types 1/0/0/0/0/0/0/0/0 Lore% 36 Gallery% 45 Achievement% 35 Wizard Run 0 Options --------- Layout 0 ASCII 0 Keyboard 1 Movement Numpad Keybinds 0 Fullscreen 1 Font 18/X11Bold Map View 76x50 Zoom Use 0% Tactical HUD 1 Map Filters NONE Filters NONE Steam 1 RUN: ff949ba6-96f9-41dd-808f-83728fbcf4d0